Workbook

Sheet Calculator
F2: 2025 Expected Contribution Range Calculator
N5: Expected Contribution Range
A6: Slope= | B6: 1.02004284 | I6: Career Path | J6: Broad-band | K6: Max Pay | L6: Retained Pay? | N6: Upper Rail | O6: Standard Pay Line | P6: Lower Rail
A7: GS-1/1 Base Salary= | B7: 22360 | G7: Enter Base Pay/Retained Pay | H7: 100000 | I7: NH | J7: 4 | K7: =VLOOKUP($J$7,MaxPay,MATCH($I$7,PaySched,1)+1,FALSE) -> 162672 | L7: =IF($H$7>$K$7,"Yes","No") -> No | M7: Expected Contribution Range = | N7: =IF(ISERROR(CEILING((LN($O$8)-LN(intercept*1.08))/LN(slope),1)),NA(),CEILING((LN($O$8)-LN(intercept*1.08))/LN(slope),1)) -> 72 | O7: =IF(ISERROR((LN($O$8)-LN(intercept))/LN(slope)),NA(),(LN($O$8)-LN(intercept))/LN(slope)) -> 75.48121625 | P7: =IF(ISERROR(FLOOR((LN($O$8)-LN(intercept*0.92))/LN(slope),1)),NA(),FLOOR((LN($O$8)-LN(intercept*0.92))/LN(slope),1)) -> 79
I8: Click on Boxes for Dropdown List to Select | N8: Pay Used in Calculation: | O8: =IF($L$7="Yes",$K$7,$H$7) -> 100000

Sheet NPR SPL Table
A1: Normal Pay Range and Standard Pay Line for 2025
A2: 15442 | B2: =slope -> 1.02004284 | D2: (Based on 1.7% Increase)
B4: OCS | C4: SPL | D4: *0.92 Lower Rail | E4: *1.08 Upper Rail | G4: OCS | H4: SPL | I4: *0.92 Lower Rail | J4: *1.08 Upper Rail
A6: GS01/1 | B6: 0 | C6: 22360 | D6: =SUM(C6*0.92) -> 20571.2 | E6: =SUM(C6*1.08) -> 24148.8
B7: 1 | C7: =SUM(C6*$B$2) -> 22808.1579 | D7: =SUM(C7*0.92) -> 20983.50527 | E7: =SUM(C7*1.08) -> 24632.81053 | G7: 51 | H7: =SUM(C56*$B$2) -> 61519.21687 | I7: =SUM(H7*0.92) -> 56597.67952 | J7: =SUM(H7*1.08) -> 66440.75422
B8: 2 | C8: =SUM(C7*$B$2) -> 23265.29816 | D8: =SUM(C8*0.92) -> 21404.07431 | E8: =SUM(C8*1.08) -> 25126.52201 | G8: 52 | H8: =SUM(H7*$B$2) -> 62752.23669 | I8: 57732.05775 | J8: 67772.41562
B9: 3 | C9: 23731.60081 | D9: 21833.07275 | E9: 25630.12888 | G9: 53 | H9: =SUM(H8*$B$2) -> 64009.96973 | I9: 58889.17215 | J9: 69130.76731
B10: 4 | C10: 24207.24949 | D10: 22270.66953 | E10: 26143.82945 | G10: 54 | H10: 65292.91131 | I10: 60069.47841 | J10: 70516.34422
B11: 5 | C11: 24692.43152 | D11: 22717.037 | E11: =SUM(C11*1.08) -> 26667.82604 | G11: 55 | H11: 66601.56668 | I11: 61273.44135 | J11: 71929.69202
B12: 6 | C12: 25187.33797 | D12: 23172.35093 | E12: 27202.32501 | G12: 56 | H12: 67936.45123 | I12: 62501.53513 | J12: 73371.36733
B13: 7 | C13: 25692.16376 | D13: 23636.79066 | E13: 27747.53686 | G13: 57 | H13: 69298.09065 | I13: 63754.2434 | J13: 74841.9379
B14: 8 | C14: 26207.10768 | D14: 24110.53907 | E14: 28303.6763 | G14: 58 | H14: 70687.0212 | I14: 65032.0595 | J14: 76341.98289
B15: 9 | C15: 26732.37255 | D15: 24593.78275 | E15: 28870.96235 | G15: 59 | H15: 72103.78985 | I15: 66335.48666 | J15: 77872.09304
B16: 10 | C16: 27268.16522 | D16: 25086.712 | E16: 29449.61843 | G16: 60 | H16: 73548.95457 | I16: 67665.03821 | J16: 79432.87094
B17: 11 | C17: 27814.69669 | D17: 25589.52095 | E17: 30039.87242 | G17: 61 | H17: 75023.0845 | I17: 69021.23774 | J17: 81024.93126
B18: 12 | C18: 28372.1822 | D18: 26102.40763 | E18: =SUM(C18*1.08) -> 30641.95678 | G18: 62 | H18: 76526.76018 | I18: 70404.61937 | J18: 82648.901
B19: 13 | C19: 28940.84131 | D19: =SUM(C19*0.92) -> 26625.57401 | E19: 31256.10862 | G19: 63 | H19: 78060.57379 | I19: 71815.72789 | J19: 84305.4197
B20: 14 | C20: =SUM(C19*$B$2) -> 29520.89796 | D20: 27159.22613 | E20: 31882.5698 | G20: 64 | H20: 79625.12938 | I20: 73255.11903 | J20: 85995.13973
B21: 15 | C21: =SUM(C20*$B$2) -> 30112.5806 | D21: 27703.57415 | E21: 32521.58705 | G21: 65 | H21: 81221.04311 | I21: 74723.35966 | J21: 87718.72656
B22: 16 | C22: 30716.12223 | D22: 28258.83245 | E22: 33173.41201 | G22: 66 | H22: 82848.94348 | I22: 76221.028 | J22: 89476.85896
B23: 17 | C23: 31331.76056 | D23: 28825.21971 | E23: 33838.3014 | G23: 67 | H23: 84509.4716 | I23: 77748.71387 | J23: 91270.22933
B24: 18 | C24: 31959.73802 | D24: 29402.95898 | E24: 34516.51706 | G24: 68 | H24: 86203.28142 | I24: 79307.01891 | J24: 93099.54393
B25: 19 | C25: 32600.30194 | D25: 29992.27778 | E25: 35208.32609 | G25: 69 | H25: 87931.04 | I25: 80896.5568 | J25: 94965.5232
B26: 20 | C26: 33253.70457 | D26: 30593.40821 | E26: 35914.00094 | G26: 70 | H26: =SUM(H25*$B$2) -> 89693.42776 | I26: 82517.95354 | J26: 96868.90198
B27: 21 | C27: 33920.20325 | D27: 31206.58699 | E27: 36633.81951 | G27: 71 | H27: 91491.13878 | I27: 84171.84768 | J27: 98810.42989
B28: 22 | C28: 34600.06046 | D28: 31832.05562 | E28: 37368.06529 | G28: 72 | H28: 93324.88104 | I28: 85858.89056 | J28: 100790.8715
B29: 23 | C29: 35293.54393 | D29: 32470.06042 | E29: 38117.02745 | G29: 73 | H29: 95195.3767 | I29: 87579.74656 | J29: 102811.0068
B30: 24 | C30: 36000.92679 | D30: 33120.85264 | E30: 38881.00093 | G30: 74 | H30: 97103.3624 | I30: 89335.09341 | J30: 104871.6314
B31: 25 | C31: 36722.4876 | D31: 33784.68859 | E31: 39660.28661 | G31: 75 | H31: 99049.58956 | I31: 91125.62239 | J31: 106973.5567
B32: 26 | C32: 37458.51055 | D32: 34461.8297 | E32: 40455.19139 | G32: 76 | H32: 101034.8246 | I32: 92952.03866 | J32: 109117.6106
B33: 27 | C33: 38209.28548 | D33: 35152.54264 | E33: 41266.02832 | G33: 77 | H33: 103059.8495 | I33: 94815.0615 | J33: 111304.6374
B34: 28 | C34: 38975.10808 | D34: 35857.09943 | E34: 42093.11672 | G34: 78 | H34: 105125.4615 | I34: 96715.42461 | J34: 113535.4985
B35: 29 | C35: 39756.27993 | D35: 36575.77754 | E35: 42936.78233 | G35: 79 | H35: 107232.4743 | I35: 98653.87639 | J35: 115811.0723
B36: 30 | C36: 40553.10869 | D36: 37308.85999 | E36: 43797.35738 | G36: 80 | H36: 109381.7177 | I36: 100631.1802 | J36: 118132.2551
B37: 31 | C37: 41365.90816 | D37: 38056.6355 | E37: 44675.18081 | G37: 81 | H37: 111574.0379 | I37: 102648.1149 | J37: 120499.961
B38: 32 | C38: 42194.99844 | D38: 38819.39856 | E38: 45570.59831 | G38: 82 | H38: 113810.2985 | I38: 104705.4746 | J38: 122915.1224
B39: 33 | C39: 43040.70604 | D39: 39597.44956 | E39: 46483.96252 | G39: 83 | H39: 116091.3801 | I39: 106804.0697 | J39: 125378.6905
B40: 34 | C40: 43903.36402 | D40: 40391.0949 | E40: 47415.63314 | G40: 84 | H40: 118418.1811 | I40: 108944.7266 | J40: 127891.6356
B41: 35 | C41: 44783.31212 | D41: 41200.64715 | E41: 48365.97709 | G41: 85 | H41: 120791.6177 | I41: 111128.2883 | J41: 130454.9472
B42: 36 | C42: 45680.89688 | D42: 42026.42513 | E42: 49335.36863 | G42: 86 | H42: 123212.6248 | I42: 113355.6148 | J42: 133069.6348
B43: 37 | C43: 46596.47179 | D43: 42868.75405 | E43: 50324.18953 | G43: 87 | H43: 125682.1557 | I43: 115627.5833 | J43: 135736.7282
B44: 38 | C44: 47530.39742 | D44: 43727.96563 | E44: 51332.82921 | G44: 88 | H44: 128201.1831 | I44: 117945.0884 | J44: 138457.2777
B45: 39 | C45: 48483.04157 | D45: 44604.39824 | E45: 52361.6849 | G45: 89 | H45: 130770.6989 | I45: 120309.043 | J45: 141232.3548
B46: 40 | C46: 49454.77941 | D46: 45498.39706 | E46: 53411.16177 | G46: 90 | H46: 133391.7151 | I46: 122720.3779 | J46: 144063.0523
B47: 41 | C47: 50445.99365 | D47: 46410.31415 | E47: 54481.67314 | G47: 91 | H47: 136065.2639 | I47: 125180.0428 | J47: 146950.485
B48: 42 | C48: 51457.07462 | D48: 47340.50865 | E48: 55573.64059 | G48: 92 | H48: =SUM(H47*$B$2) -> 138792.3982 | I48: 127689.0063 | J48: =SUM(H48*1.08) -> 149895.79
B49: 43 | C49: 52488.42054 | D49: 48289.3469 | E49: 56687.49418 | G49: 93 | H49: 141574.192 | I49: 130248.2566 | J49: 152900.1274
B50: 44 | C50: 53540.43755 | D50: 49257.20255 | E50: 57823.67256 | G50: 94 | H50: 144411.7409 | I50: 132858.8016 | J50: 155964.6802
B51: 45 | C51: 54613.53998 | D51: 50244.45678 | E51: 58982.62317 | G51: 95 | H51: 147306.1623 | I51: 135521.6693 | J51: 159090.6553
B52: 46 | C52: 55708.15042 | D52: 51251.49839 | E52: 60164.80245 | G52: 96 | H52: 150258.5961 | I52: 138237.9085 | J52: 162279.2838
B53: 47 | C53: 56824.69997 | D53: 52278.72397 | E53: 61370.67596 | G53: 97 | H53: 153270.2051 | I53: 141008.5887 | J53: =SUM(H53*1.08) -> 165531.8216
B54: 48 | C54: 57963.62834 | D54: 53326.53807 | E54: 62600.7186 | G54: 98 | H54: 156342.1753 | I54: 143834.8013 | J54: =SUM(H54*1.08) -> 168849.5494
B55: 49 | C55: 59125.38406 | D55: 54395.35334 | E55: 63855.41479 | G55: 99 | H55: 159475.7165 | I55: 146717.6592 | J55: =SUM(H55*1.08) -> 172233.7739
B56: 50 | C56: 60310.42468 | D56: 55485.5907 | E56: 65135.25865 | F56: GS15/10 | G56: 100 | H56: 162672.0628 | I56: 149658.2978 | J56: =SUM(H56*1.08) -> 175685.8278
G59: Yes
B60: BroadBand | C60: NH | D60: NJ | E60: NK | G60: No
B61: 1 | C61: 40038 | D61: 40038 | E61: 40038
B62: 2 | C62: 82108 | D62: 61449 | E62: 55486
B63: 3 | C63: 117034 | D63: 82108 | E63: 74733
B64: 4 | C64: 162672 | D64: 117034

Sheet Salary Ranges
B2: 2025 Broadband Salary Ranges
B3: Business and Technical Management Professional (NH)
B4: I $22,360-$40,038 (GS 1-4) | C4: II $34,454-$82,108 (GS 5-11) | D4: III $75,706-$117,034 (GS 12-13) | E4: IV $106,382-$162,672 (GS 14-15)
B5: Technical Management Support (NJ)
B6: I $22,360-$40,038 (GS 1-4) | C6: II $34,454-$61,449 (GS 5-8) | D6: III $52,205-$82,108 (GS 9-11) | E6: IV $75,706-$117,034 (GS 12-13)
B7: Administrative Support (NK)
B8: I $22,360-$40,038 (GS 1-4) | C8: II $34,454-$55,486 (GS 5-7) | D8: III $47,265-$74,733 (GS 8-10) | E8: 2025 Broadband Scale (w/o Locality Pay)
